[Event "Titled Tuesday Blitz February 22 Early 2022"]
[White "Papasimakopoulos, Alexandros"]
[Black "Freitag, Manfred"]
[WhiteFideId "4244125"]
[BlackFideId "1602004"]
[WhiteElo "2340"]
[BlackElo "2275"]
[Result "1-0"]
[Round "03"]
[TimeControl "180+1"]
[Date "2022.02.22"]
[WhiteClock "0:00:18"]
[BlackClock "0:00:16"]

1. d4 {[%clk 0:03:00]}  Nf6 {[%clk 0:02:59]} 2. c4 {[%clk 0:03:01]}  g6 {[%clk 0:02:59]} 3. Nc3 {[%clk 0:03:01]}  Bg7 {[%clk 0:03:00]} 4. e4 {[%clk 0:02:53]}  O-O {[%clk 0:03:01]} 5. f3 {[%clk 0:02:53]}  d6 {[%clk 0:03:01]} 6. Nge2 {[%clk 0:02:54]}  a6 {[%clk 0:03:02]} 7. Be3 {[%clk 0:02:53]}  Nbd7 {[%clk 0:03:02]} 8. Qd2 {[%clk 0:02:53]}  b5 {[%clk 0:03:02]} 9. Nc1 {[%clk 0:02:51]}  b4 {[%clk 0:02:57]} 10. Nd5 {[%clk 0:02:51]}  c5 {[%clk 0:02:58]} 11. Nb3 {[%clk 0:02:48]}  cxd4 {[%clk 0:02:55]} 12. Nxd4 {[%clk 0:02:43]}  Bb7 {[%clk 0:02:38]} 13. Qxb4 {[%clk 0:02:42]}  Rb8 {[%clk 0:02:38]} 14. Qd2 {[%clk 0:02:42]}  a5 {[%clk 0:02:20]} 15. Be2 {[%clk 0:02:41]}  a4 {[%clk 0:02:18]} 16. O-O {[%clk 0:02:40]}  Nc5 {[%clk 0:02:17]} 17. Rab1 {[%clk 0:02:33]}  Nxd5 {[%clk 0:02:09]} 18. cxd5 {[%clk 0:02:31]}  Ba8 {[%clk 0:02:01]} 19. Rfc1 {[%clk 0:02:21]}  Qd7 {[%clk 0:01:59]} 20. Qa5 {[%clk 0:02:09]}  Rfc8 {[%clk 0:01:52]} 21. Bb5 {[%clk 0:02:02]}  Qc7 {[%clk 0:01:19]} 22. Qxc7 {[%clk 0:02:01]}  Rxc7 {[%clk 0:01:20]} 23. Bc6 {[%clk 0:02:01]}  Bxd4 {[%clk 0:01:17]} 24. Bxd4 {[%clk 0:02:00]}  Bxc6 {[%clk 0:01:17]} 25. Bxc5 {[%clk 0:01:52]}  Bb5 {[%clk 0:01:14]} 26. Bd4 {[%clk 0:01:51]}  Rbc8 {[%clk 0:01:12]} 27. Rc3 {[%clk 0:01:45]}  f6 {[%clk 0:01:05]} 28. Kf2 {[%clk 0:01:40]}  Rc4 {[%clk 0:01:02]} 29. Rbc1 {[%clk 0:01:36]}  Rxc3 {[%clk 0:01:01]} 30. Bxc3 {[%clk 0:01:32]}  Kf7 {[%clk 0:00:58]} 31. Ke3 {[%clk 0:01:31]}  f5 {[%clk 0:00:55]} 32. b3 {[%clk 0:01:24]}  axb3 {[%clk 0:00:52]} 33. axb3 {[%clk 0:01:24]}  e6 {[%clk 0:00:47]} 34. dxe6+ {[%clk 0:01:20]}  Kxe6 {[%clk 0:00:48]} 35. exf5+ {[%clk 0:01:20]}  gxf5 {[%clk 0:00:48]} 36. Kd4 {[%clk 0:01:17]}  Rc5 {[%clk 0:00:40]} 37. Re1+ {[%clk 0:01:14]}  Kd7 {[%clk 0:00:40]} 38. Rc1 {[%clk 0:00:43]}  Bc6 {[%clk 0:00:39]} 39. Bd2 {[%clk 0:00:41]}  Rxc1 {[%clk 0:00:38]} 40. Bxc1 {[%clk 0:00:41]}  Bb5 {[%clk 0:00:38]} 41. g4 {[%clk 0:00:41]}  Ke6 {[%clk 0:00:33]} 42. Ke3 {[%clk 0:00:38]}  fxg4 {[%clk 0:00:27]} 43. fxg4 {[%clk 0:00:38]}  Kd5 {[%clk 0:00:25]} 44. h4 {[%clk 0:00:37]}  Bd7 {[%clk 0:00:25]} 45. Kf4 {[%clk 0:00:37]}  Be6 {[%clk 0:00:25]} 46. Be3 {[%clk 0:00:35]}  Kc6 {[%clk 0:00:23]} 47. b4 {[%clk 0:00:34]}  Kb5 {[%clk 0:00:23]} 48. Bd2 {[%clk 0:00:32]}  Bd7 {[%clk 0:00:21]} 49. h5 {[%clk 0:00:28]}  Be8 {[%clk 0:00:18]} 50. Kg5 {[%clk 0:00:28]}  Bd7 {[%clk 0:00:18]} 51. Kh4 {[%clk 0:00:17]}  Kc4 {[%clk 0:00:14]} 52. g5 {[%clk 0:00:17]}  Bf5 {[%clk 0:00:14]} 53. g6 {[%clk 0:00:17]}  hxg6 {[%clk 0:00:15]} 54. h6 {[%clk 0:00:17]}  g5+ {[%clk 0:00:15]} 55. Kxg5 {[%clk 0:00:17]}  Be4 {[%clk 0:00:14]} 56. Kf6 {[%clk 0:00:17]}  d5 {[%clk 0:00:14]} 57. Kg7 {[%clk 0:00:17]}  d4 {[%clk 0:00:15]} 58. h7 {[%clk 0:00:17]}  Bxh7 {[%clk 0:00:15]} 59. Kxh7 {[%clk 0:00:18]}  Kd3 {[%clk 0:00:15]} 60. Be1 {[%clk 0:00:18]}  Kc4 {[%clk 0:00:16]} 61. Kg6 {[%clk 0:00:18]}  d3 {[%clk 0:00:16]} 62. Kf5 {[%clk 0:00:18]}  Kd4 {[%clk 0:00:16]} 63. Kf4 {[%clk 0:00:18]}  Kc4 {[%clk 0:00:16]} 64. Ke4 {[%clk 0:00:18]}  Kb5 {[%clk 0:00:16]} 65. Kxd3 {[%clk 0:00:18]} 1-0


[Site "https://www.chess.com"]

[Event "Titled Tuesday Blitz February 22 Early 2022"]
[White "Papp, Levente"]
[Black "Bluebaum, Matthias"]
[WhiteFideId "751243"]
[BlackFideId "24651516"]
[WhiteElo "2308"]
[BlackElo "2550"]
[Result "1-0"]
[Round "03"]
[TimeControl "180+1"]
[Date "2022.02.22"]
[WhiteClock "0:00:07"]
[BlackClock "0:00:06"]

1. g3 {[%clk 0:03:00]}  d5 {[%clk 0:02:59]} 2. Nf3 {[%clk 0:02:59]}  Bg4 {[%clk 0:02:59]} 3. Bg2 {[%clk 0:02:58]}  e6 {[%clk 0:02:59]} 4. c4 {[%clk 0:02:57]}  c6 {[%clk 0:02:59]} 5. O-O {[%clk 0:02:57]}  Nf6 {[%clk 0:02:59]} 6. h3 {[%clk 0:02:54]}  Bh5 {[%clk 0:02:59]} 7. Ne5 {[%clk 0:02:51]}  Nbd7 {[%clk 0:02:59]} 8. Nxd7 {[%clk 0:02:49]}  Qxd7 {[%clk 0:03:00]} 9. b3 {[%clk 0:02:46]}  dxc4 {[%clk 0:02:54]} 10. bxc4 {[%clk 0:02:46]}  Qd4 {[%clk 0:02:54]} 11. Nc3 {[%clk 0:02:46]}  Qxc4 {[%clk 0:02:55]} 12. Rb1 {[%clk 0:02:44]}  Bb4 {[%clk 0:02:16]} 13. Qa4 {[%clk 0:02:24]}  a5 {[%clk 0:02:16]} 14. a3 {[%clk 0:02:23]}  b5 {[%clk 0:01:39]} 15. Qb3 {[%clk 0:01:52]}  Qxb3 {[%clk 0:01:17]} 16. Rxb3 {[%clk 0:01:47]}  Bxc3 {[%clk 0:01:16]} 17. Bxc6+ {[%clk 0:01:43]}  Ke7 {[%clk 0:01:17]} 18. Bxa8 {[%clk 0:01:25]}  Rxa8 {[%clk 0:01:16]} 19. g4 {[%clk 0:01:11]}  Bg6 {[%clk 0:00:57]} 20. Rxc3 {[%clk 0:00:59]}  Nd5 {[%clk 0:00:56]} 21. Rc5 {[%clk 0:00:51]}  b4 {[%clk 0:00:53]} 22. d3 {[%clk 0:00:45]}  Nc3 {[%clk 0:00:53]} 23. Re1 {[%clk 0:00:42]}  Kd6 {[%clk 0:00:32]} 24. Rc4 {[%clk 0:00:42]}  Kd5 {[%clk 0:00:32]} 25. e4+ {[%clk 0:00:27]}  Nxe4 {[%clk 0:00:26]} 26. Rexe4 {[%clk 0:00:27]}  Bxe4 {[%clk 0:00:26]} 27. Rxe4 {[%clk 0:00:27]}  Rc8 {[%clk 0:00:23]} 28. Re1 {[%clk 0:00:18]}  b3 {[%clk 0:00:22]} 29. Bb2 {[%clk 0:00:18]}  f6 {[%clk 0:00:21]} 30. Kf1 {[%clk 0:00:18]}  e5 {[%clk 0:00:17]} 31. Re2 {[%clk 0:00:17]}  a4 {[%clk 0:00:16]} 32. Ke1 {[%clk 0:00:17]}  h5 {[%clk 0:00:16]} 33. gxh5 {[%clk 0:00:14]}  Rh8 {[%clk 0:00:16]} 34. Re4 {[%clk 0:00:14]}  Rc8 {[%clk 0:00:12]} 35. Kd1 {[%clk 0:00:14]}  Rc7 {[%clk 0:00:08]} 36. Rc4 {[%clk 0:00:13]}  Ra7 {[%clk 0:00:03]} 37. Kd2 {[%clk 0:00:13]}  Ra8 {[%clk 0:00:03]} 38. Rc7 {[%clk 0:00:12]}  Rh8 {[%clk 0:00:03]} 39. Rxg7 {[%clk 0:00:12]}  Rxh5 {[%clk 0:00:03]} 40. Rg4 {[%clk 0:00:12]}  Rxh3 {[%clk 0:00:03]} 41. Rxa4 {[%clk 0:00:12]}  Rh2 {[%clk 0:00:04]} 42. Ra5+ {[%clk 0:00:12]}  Ke6 {[%clk 0:00:04]} 43. Rb5 {[%clk 0:00:10]}  Rxf2+ {[%clk 0:00:04]} 44. Kc3 {[%clk 0:00:10]}  f5 {[%clk 0:00:02]} 45. Kxb3 {[%clk 0:00:11]}  Re2 {[%clk 0:00:02]} 46. a4 {[%clk 0:00:10]}  f4 {[%clk 0:00:02]} 47. a5 {[%clk 0:00:08]}  f3 {[%clk 0:00:03]} 48. Rb8 {[%clk 0:00:08]}  Ke7 {[%clk 0:00:02]} 49. Rb7+ {[%clk 0:00:09]}  Ke6 {[%clk 0:00:03]} 50. Rb8 {[%clk 0:00:09]}  Ke7 {[%clk 0:00:03]} 51. Ba3+ {[%clk 0:00:09]}  Kd7 {[%clk 0:00:03]} 52. a6 {[%clk 0:00:10]}  f2 {[%clk 0:00:04]} 53. Rf8 {[%clk 0:00:10]}  Re3 {[%clk 0:00:03]} 54. Kc3 {[%clk 0:00:09]}  e4 {[%clk 0:00:03]} 55. a7 {[%clk 0:00:09]}  Rxd3+ {[%clk 0:00:04]} 56. Kb4 {[%clk 0:00:09]}  Rf3 {[%clk 0:00:05]} 57. a8=Q {[%clk 0:00:08]}  f1=Q {[%clk 0:00:05]} 58. Qd5+ {[%clk 0:00:08]}  Ke7 {[%clk 0:00:05]} 59. Qc5+ {[%clk 0:00:07]}  Ke6 {[%clk 0:00:05]} 60. Qc8+ {[%clk 0:00:08]}  Ke5 {[%clk 0:00:05]} 61. Bb2+ {[%clk 0:00:07]}  Kd5 {[%clk 0:00:06]} 62. Qd7# {[%clk 0:00:07]} 1-0


[Site "https://www.chess.com"]

[Event "Titled Tuesday Blitz February 22 Early 2022"]
[White "Paravyan, David"]
[Black "Arabidze, Meri"]
[WhiteFideId "4194985"]
[BlackFideId "13604040"]
[WhiteElo "2569"]
[BlackElo "2329"]
[Result "1/2-1/2"]
[Round "03"]
[TimeControl "180+1"]
[Date "2022.02.22"]
[WhiteClock "0:00:03"]
[BlackClock "0:00:09"]

1. e4 {[%clk 0:03:00]}  c5 {[%clk 0:02:56]} 2. Nf3 {[%clk 0:03:00]}  e6 {[%clk 0:02:56]} 3. d4 {[%clk 0:03:01]}  cxd4 {[%clk 0:02:57]} 4. Nxd4 {[%clk 0:03:01]}  Nc6 {[%clk 0:02:57]} 5. Nc3 {[%clk 0:03:01]}  a6 {[%clk 0:02:57]} 6. Nxc6 {[%clk 0:03:00]}  bxc6 {[%clk 0:02:58]} 7. Bd3 {[%clk 0:03:01]}  d5 {[%clk 0:02:59]} 8. O-O {[%clk 0:03:00]}  Nf6 {[%clk 0:02:59]} 9. Re1 {[%clk 0:03:00]}  Bb7 {[%clk 0:02:59]} 10. Bg5 {[%clk 0:02:57]}  Be7 {[%clk 0:02:59]} 11. e5 {[%clk 0:02:55]}  Nd7 {[%clk 0:02:58]} 12. Bxe7 {[%clk 0:02:55]}  Qxe7 {[%clk 0:02:59]} 13. Qg4 {[%clk 0:02:56]}  O-O {[%clk 0:02:55]} 14. Re3 {[%clk 0:02:54]}  g6 {[%clk 0:02:46]} 15. Qf4 {[%clk 0:02:33]}  Rfd8 {[%clk 0:02:37]} 16. Rh3 {[%clk 0:01:49]}  c5 {[%clk 0:02:31]} 17. Qh6 {[%clk 0:01:43]}  Nf8 {[%clk 0:02:30]} 18. Re1 {[%clk 0:01:40]}  c4 {[%clk 0:02:13]} 19. Bf1 {[%clk 0:01:39]}  d4 {[%clk 0:02:10]} 20. Ne4 {[%clk 0:01:06]}  Bxe4 {[%clk 0:02:07]} 21. Rxe4 {[%clk 0:01:07]}  Rac8 {[%clk 0:01:58]} 22. Qf4 {[%clk 0:00:50]}  d3 {[%clk 0:01:43]} 23. cxd3 {[%clk 0:00:49]}  cxd3 {[%clk 0:01:43]} 24. Rxd3 {[%clk 0:00:46]}  Rc2 {[%clk 0:01:33]} 25. Rxd8 {[%clk 0:00:24]}  Qxd8 {[%clk 0:01:34]} 26. Re2 {[%clk 0:00:22]}  Rc5 {[%clk 0:01:21]} 27. Rd2 {[%clk 0:00:17]}  Qc7 {[%clk 0:01:17]} 28. Rd1 {[%clk 0:00:14]}  Rxe5 {[%clk 0:01:14]} 29. g3 {[%clk 0:00:11]}  a5 {[%clk 0:01:09]} 30. a3 {[%clk 0:00:10]}  g5 {[%clk 0:00:53]} 31. Qd2 {[%clk 0:00:06]}  Rd5 {[%clk 0:00:52]} 32. Qe1 {[%clk 0:00:06]}  Rxd1 {[%clk 0:00:50]} 33. Qxd1 {[%clk 0:00:07]}  Ng6 {[%clk 0:00:48]} 34. Qd2 {[%clk 0:00:07]}  h6 {[%clk 0:00:47]} 35. Bg2 {[%clk 0:00:07]}  Ne5 {[%clk 0:00:44]} 36. h3 {[%clk 0:00:07]}  Qc5 {[%clk 0:00:37]} 37. b4 {[%clk 0:00:07]}  axb4 {[%clk 0:00:37]} 38. axb4 {[%clk 0:00:05]}  Qb6 {[%clk 0:00:33]} 39. Qc3 {[%clk 0:00:05]}  f6 {[%clk 0:00:25]} 40. Be4 {[%clk 0:00:02]}  Kf7 {[%clk 0:00:23]} 41. Kg2 {[%clk 0:00:03]}  Ke7 {[%clk 0:00:21]} 42. Kg1 {[%clk 0:00:03]}  Kd6 {[%clk 0:00:18]} 43. Bg2 {[%clk 0:00:03]}  Ke7 {[%clk 0:00:18]} 44. Qd2 {[%clk 0:00:02]}  h5 {[%clk 0:00:17]} 45. Kh2 {[%clk 0:00:02]}  h4 {[%clk 0:00:17]} 46. gxh4 {[%clk 0:00:01]}  gxh4 {[%clk 0:00:18]} 47. f4 {[%clk 0:00:02]}  Nd7 {[%clk 0:00:18]} 48. Qe1 {[%clk 0:00:02]}  Qd4 {[%clk 0:00:17]} 49. Qxh4 {[%clk 0:00:03]}  Qxb4 {[%clk 0:00:17]} 50. Qg4 {[%clk 0:00:03]}  Qd4 {[%clk 0:00:17]} 51. Qg7+ {[%clk 0:00:03]}  Kd6 {[%clk 0:00:17]} 52. Qg3 {[%clk 0:00:04]}  Ke7 {[%clk 0:00:17]} 53. h4 {[%clk 0:00:04]}  f5 {[%clk 0:00:12]} 54. h5 {[%clk 0:00:04]}  Nf6 {[%clk 0:00:12]} 55. Qg7+ {[%clk 0:00:04]}  Kd6 {[%clk 0:00:12]} 56. Qf8+ {[%clk 0:00:05]}  Kd7 {[%clk 0:00:09]} 57. Qg7+ {[%clk 0:00:05]}  Kd6 {[%clk 0:00:09]} 58. Qf8+ {[%clk 0:00:03]}  Kd7 {[%clk 0:00:09]} 59. Qf7+ {[%clk 0:00:03]}  Kd6 {[%clk 0:00:09]} 60. Qf8+ {[%clk 0:00:03]} 1/2-1/2


[Site "https://www.chess.com"]

[Event "Titled Tuesday Blitz February 22 Early 2022"]
[White "Perez Ponsa, Federico"]
[Black "Tsvetkov, Andrey"]
[WhiteFideId "117927"]
[BlackFideId "34139360"]
[WhiteElo "2672"]
[BlackElo "2280"]
[Result "1-0"]
[Round "03"]
[TimeControl "180+1"]
[Date "2022.02.22"]
[WhiteClock "0:00:37"]
[BlackClock "0:00:02"]

1. d4 {[%clk 0:03:00]}  d5 {[%clk 0:03:00]} 2. c4 {[%clk 0:02:54]}  e6 {[%clk 0:03:00]} 3. Nc3 {[%clk 0:02:53]}  c6 {[%clk 0:03:01]} 4. e4 {[%clk 0:02:53]}  dxe4 {[%clk 0:03:02]} 5. Nxe4 {[%clk 0:02:53]}  Bb4+ {[%clk 0:03:02]} 6. Bd2 {[%clk 0:02:53]}  Qxd4 {[%clk 0:03:02]} 7. Bxb4 {[%clk 0:02:54]}  Qxe4+ {[%clk 0:03:03]} 8. Be2 {[%clk 0:02:54]}  Na6 {[%clk 0:03:04]} 9. Bd6 {[%clk 0:02:54]}  Nh6 {[%clk 0:03:01]} 10. Qd2 {[%clk 0:02:40]}  Bd7 {[%clk 0:02:51]} 11. Qg5 {[%clk 0:02:25]}  Nf5 {[%clk 0:02:43]} 12. Ba3 {[%clk 0:02:16]}  c5 {[%clk 0:02:33]} 13. Nf3 {[%clk 0:02:09]}  f6 {[%clk 0:02:16]} 14. Qd2 {[%clk 0:02:03]}  Rd8 {[%clk 0:02:14]} 15. O-O-O {[%clk 0:01:58]}  O-O {[%clk 0:02:03]} 16. Rhe1 {[%clk 0:01:54]}  Ba4 {[%clk 0:01:46]} 17. Bd3 {[%clk 0:01:47]}  Qg4 {[%clk 0:01:31]} 18. b3 {[%clk 0:01:45]}  Qxg2 {[%clk 0:01:28]} 19. Qe2 {[%clk 0:01:31]}  Bd7 {[%clk 0:01:16]} 20. Bxf5 {[%clk 0:01:22]}  exf5 {[%clk 0:01:16]} 21. Rg1 {[%clk 0:01:23]}  Qh3 {[%clk 0:01:12]} 22. Qe7 {[%clk 0:01:24]}  g6 {[%clk 0:00:58]} 23. Ng5 {[%clk 0:01:05]}  fxg5 {[%clk 0:00:29]} 24. Bb2 {[%clk 0:01:05]}  Qh6 {[%clk 0:00:26]} 25. Rxd7 {[%clk 0:00:48]}  Rxd7 {[%clk 0:00:04]} 26. Qxd7 {[%clk 0:00:48]}  Nb4 {[%clk 0:00:05]} 27. Rd1 {[%clk 0:00:38]}  g4+ {[%clk 0:00:04]} 28. Kb1 {[%clk 0:00:38]}  g3 {[%clk 0:00:02]} 29. Qe6+ {[%clk 0:00:37]} 1-0


[Site "https://www.chess.com"]

[Event "Titled Tuesday Blitz February 22 Early 2022"]
[White "Petrovic, Aleksa"]
[Black "Roman, Rodrigo"]
[WhiteFideId "967629"]
[BlackFideId "3701220"]
[WhiteElo "2139"]
[BlackElo "2001"]
[Result "1-0"]
[Round "03"]
[TimeControl "180+1"]
[Date "2022.02.22"]
[WhiteClock "0:00:06"]
[BlackClock "0:00:15"]

1. e4 {[%clk 0:03:00]}  c5 {[%clk 0:02:59]} 2. Nf3 {[%clk 0:03:00]}  Nc6 {[%clk 0:02:17]} 3. Nc3 {[%clk 0:02:59]}  g6 {[%clk 0:01:38]} 4. Bb5 {[%clk 0:02:50]}  Nd4 {[%clk 0:01:17]} 5. Bc4 {[%clk 0:02:47]}  Bg7 {[%clk 0:01:16]} 6. O-O {[%clk 0:02:45]}  e6 {[%clk 0:01:16]} 7. Re1 {[%clk 0:02:29]}  d6 {[%clk 0:01:13]} 8. Re3 {[%clk 0:02:09]}  Ne7 {[%clk 0:01:11]} 9. Ne2 {[%clk 0:01:57]}  Bh6 {[%clk 0:01:01]} 10. Rd3 {[%clk 0:01:43]}  e5 {[%clk 0:01:01]} 11. Nfxd4 {[%clk 0:01:32]}  cxd4 {[%clk 0:01:01]} 12. c3 {[%clk 0:01:31]}  Qc7 {[%clk 0:00:42]} 13. Bb5+ {[%clk 0:01:22]}  Bd7 {[%clk 0:00:41]} 14. Bxd7+ {[%clk 0:01:21]}  Qxd7 {[%clk 0:00:42]} 15. cxd4 {[%clk 0:01:21]}  exd4 {[%clk 0:00:43]} 16. Rxd4 {[%clk 0:01:04]}  Bg7 {[%clk 0:00:41]} 17. Rc4 {[%clk 0:00:59]}  O-O {[%clk 0:00:41]} 18. d4 {[%clk 0:00:56]}  d5 {[%clk 0:00:41]} 19. exd5 {[%clk 0:00:55]}  Nxd5 {[%clk 0:00:42]} 20. Bg5 {[%clk 0:00:42]}  Rfe8 {[%clk 0:00:42]} 21. Rac1 {[%clk 0:00:38]}  Qf5 {[%clk 0:00:40]} 22. Bd2 {[%clk 0:00:29]}  Qd3 {[%clk 0:00:39]} 23. Ng3 {[%clk 0:00:19]}  Bxd4 {[%clk 0:00:31]} 24. Be3 {[%clk 0:00:14]}  Qxd1+ {[%clk 0:00:30]} 25. Rxd1 {[%clk 0:00:14]}  Nxe3 {[%clk 0:00:28]} 26. fxe3 {[%clk 0:00:14]}  Bxe3+ {[%clk 0:00:29]} 27. Kf1 {[%clk 0:00:14]}  Rad8 {[%clk 0:00:23]} 28. Rxd8 {[%clk 0:00:13]}  Rxd8 {[%clk 0:00:24]} 29. Rc7 {[%clk 0:00:14]}  Rb8 {[%clk 0:00:24]} 30. Ke2 {[%clk 0:00:12]}  Bf4 {[%clk 0:00:24]} 31. Rd7 {[%clk 0:00:11]}  Be5 {[%clk 0:00:24]} 32. Ne4 {[%clk 0:00:11]}  Bxb2 {[%clk 0:00:21]} 33. Nd6 {[%clk 0:00:08]}  Bg7 {[%clk 0:00:16]} 34. Nxf7 {[%clk 0:00:07]}  Re8+ {[%clk 0:00:16]} 35. Kd3 {[%clk 0:00:08]}  Rb8 {[%clk 0:00:13]} 36. Nd6 {[%clk 0:00:08]}  Be5 {[%clk 0:00:11]} 37. Nxb7 {[%clk 0:00:07]}  Bxh2 {[%clk 0:00:11]} 38. Nc5 {[%clk 0:00:07]}  Rc8 {[%clk 0:00:11]} 39. Ne6 {[%clk 0:00:07]}  Re8 {[%clk 0:00:12]} 40. Nd4 {[%clk 0:00:05]}  Be5 {[%clk 0:00:12]} 41. Nc6 {[%clk 0:00:04]}  Bg7 {[%clk 0:00:11]} 42. Nxa7 {[%clk 0:00:05]}  Ra8 {[%clk 0:00:11]} 43. a4 {[%clk 0:00:05]}  Rf8 {[%clk 0:00:09]} 44. a5 {[%clk 0:00:05]}  Rf2 {[%clk 0:00:10]} 45. a6 {[%clk 0:00:05]}  Ra2 {[%clk 0:00:10]} 46. Rd6 {[%clk 0:00:04]}  Bf8 {[%clk 0:00:10]} 47. Rb6 {[%clk 0:00:04]}  Rxg2 {[%clk 0:00:11]} 48. Nc6 {[%clk 0:00:03]}  Ra2 {[%clk 0:00:11]} 49. a7 {[%clk 0:00:04]}  Kg7 {[%clk 0:00:11]} 50. Rb7+ {[%clk 0:00:04]}  Kh6 {[%clk 0:00:11]} 51. Kc4 {[%clk 0:00:04]}  Bd6 {[%clk 0:00:10]} 52. Kb5 {[%clk 0:00:04]}  Rb2+ {[%clk 0:00:10]} 53. Ka6 {[%clk 0:00:04]}  Ra2+ {[%clk 0:00:10]} 54. Na5 {[%clk 0:00:05]}  Bf4 {[%clk 0:00:06]} 55. a8=Q {[%clk 0:00:04]}  Bd2 {[%clk 0:00:07]} 56. Rb5 {[%clk 0:00:05]}  Bxa5 {[%clk 0:00:07]} 57. Qh1+ {[%clk 0:00:04]}  Kg7 {[%clk 0:00:07]} 58. Rxa5 {[%clk 0:00:05]}  Rf2 {[%clk 0:00:07]} 59. Qa1+ {[%clk 0:00:05]}  Rf6+ {[%clk 0:00:07]} 60. Kb7 {[%clk 0:00:03]}  Kf7 {[%clk 0:00:08]} 61. Ra6 {[%clk 0:00:04]}  Rf5 {[%clk 0:00:08]} 62. Qa2+ {[%clk 0:00:04]}  Kg7 {[%clk 0:00:08]} 63. Ra5 {[%clk 0:00:05]}  Rf6 {[%clk 0:00:08]} 64. Qb2 {[%clk 0:00:06]}  Kf7 {[%clk 0:00:08]} 65. Qb3+ {[%clk 0:00:06]}  Kg7 {[%clk 0:00:08]} 66. Qc3 {[%clk 0:00:07]}  Kf7 {[%clk 0:00:09]} 67. Qc4+ {[%clk 0:00:07]}  Kf8 {[%clk 0:00:10]} 68. Qc8+ {[%clk 0:00:06]}  Kg7 {[%clk 0:00:10]} 69. Qd7+ {[%clk 0:00:06]}  Rf7 {[%clk 0:00:10]} 70. Kc7 {[%clk 0:00:05]}  h5 {[%clk 0:00:10]} 71. Qxf7+ {[%clk 0:00:04]}  Kxf7 {[%clk 0:00:10]} 72. Kd6 {[%clk 0:00:05]}  Kf6 {[%clk 0:00:11]} 73. Kd5 {[%clk 0:00:05]}  Kf5 {[%clk 0:00:12]} 74. Kd4+ {[%clk 0:00:05]}  Kf4 {[%clk 0:00:13]} 75. Kd3 {[%clk 0:00:05]}  g5 {[%clk 0:00:12]} 76. Ke2 {[%clk 0:00:05]}  h4 {[%clk 0:00:11]} 77. Kf2 {[%clk 0:00:05]}  g4 {[%clk 0:00:12]} 78. Ra4+ {[%clk 0:00:05]}  Kg5 {[%clk 0:00:11]} 79. Kg2 {[%clk 0:00:06]}  Kh5 {[%clk 0:00:12]} 80. Kh2 {[%clk 0:00:05]}  Kg5 {[%clk 0:00:12]} 81. Kg2 {[%clk 0:00:06]}  Kf5 {[%clk 0:00:13]} 82. Ra5+ {[%clk 0:00:06]}  Kf4 {[%clk 0:00:13]} 83. Rc5 {[%clk 0:00:06]}  h3+ {[%clk 0:00:11]} 84. Kh2 {[%clk 0:00:05]}  Kf3 {[%clk 0:00:12]} 85. Rf5+ {[%clk 0:00:05]}  Ke4 {[%clk 0:00:12]} 86. Rf8 {[%clk 0:00:05]}  Ke3 {[%clk 0:00:11]} 87. Kg3 {[%clk 0:00:05]}  Ke2 {[%clk 0:00:12]} 88. Kxg4 {[%clk 0:00:06]}  h2 {[%clk 0:00:12]} 89. Rh8 {[%clk 0:00:06]}  Kf1 {[%clk 0:00:12]} 90. Rxh2 {[%clk 0:00:07]}  Kg1 {[%clk 0:00:13]} 91. Ra2 {[%clk 0:00:07]}  Kf1 {[%clk 0:00:14]} 92. Kf3 {[%clk 0:00:06]}  Kg1 {[%clk 0:00:14]} 93. Rb2 {[%clk 0:00:06]}  Kf1 {[%clk 0:00:15]} 94. Rb1# {[%clk 0:00:06]} 1-0


[Site "https://www.chess.com"]

[Event "Titled Tuesday Blitz February 22 Early 2022"]
[White "Politov, Pavel Y."]
[Black "Matveeva, Olga"]
[WhiteFideId "24110515"]
[BlackFideId "24107018"]
[WhiteElo "2090"]
[BlackElo "2083"]
[Result "1-0"]
[Round "03"]
[TimeControl "180+1"]
[Date "2022.02.22"]
[WhiteClock "0:00:08"]
[BlackClock "0:00:15"]

1. e4 {[%clk 0:03:00]}  e6 {[%clk 0:02:59]} 2. d4 {[%clk 0:02:59]}  d5 {[%clk 0:02:58]} 3. Nc3 {[%clk 0:02:59]}  Bb4 {[%clk 0:02:56]} 4. e5 {[%clk 0:02:59]}  c5 {[%clk 0:02:55]} 5. a3 {[%clk 0:02:59]}  Bxc3+ {[%clk 0:02:54]} 6. bxc3 {[%clk 0:03:00]}  Ne7 {[%clk 0:02:53]} 7. Qg4 {[%clk 0:02:55]}  Qc7 {[%clk 0:02:51]} 8. Qxg7 {[%clk 0:02:45]}  Rg8 {[%clk 0:02:50]} 9. Qxh7 {[%clk 0:02:44]}  cxd4 {[%clk 0:02:49]} 10. Ne2 {[%clk 0:02:44]}  Nbc6 {[%clk 0:02:47]} 11. f4 {[%clk 0:02:39]}  dxc3 {[%clk 0:02:46]} 12. h4 {[%clk 0:02:33]}  Bd7 {[%clk 0:02:43]} 13. h5 {[%clk 0:02:32]}  O-O-O {[%clk 0:02:42]} 14. Qd3 {[%clk 0:02:31]}  d4 {[%clk 0:02:41]} 15. Rb1 {[%clk 0:02:29]}  Kb8 {[%clk 0:02:39]} 16. Rg1 {[%clk 0:02:27]}  Rg4 {[%clk 0:01:42]} 17. g3 {[%clk 0:02:23]}  Rh8 {[%clk 0:01:31]} 18. Bh3 {[%clk 0:02:21]}  Rg7 {[%clk 0:01:28]} 19. g4 {[%clk 0:02:17]}  Nd5 {[%clk 0:01:15]} 20. Rg2 {[%clk 0:01:21]}  Qd8 {[%clk 0:01:10]} 21. Kf1 {[%clk 0:00:19]}  Qh4 {[%clk 0:00:51]} 22. a4 {[%clk 0:00:15]}  Ne3+ {[%clk 0:00:45]} 23. Bxe3 {[%clk 0:00:13]}  Qxh3 {[%clk 0:00:45]} 24. Bxd4 {[%clk 0:00:12]}  Qh1+ {[%clk 0:00:37]} 25. Rg1 {[%clk 0:00:11]}  Qd5 {[%clk 0:00:33]} 26. Bxc3 {[%clk 0:00:10]}  Qc5 {[%clk 0:00:17]} 27. Qxd7 {[%clk 0:00:08]}  b6 {[%clk 0:00:15]} 28. Qd6+ {[%clk 0:00:07]}  Qxd6 {[%clk 0:00:16]} 29. exd6 {[%clk 0:00:08]}  Kc8 {[%clk 0:00:15]} 30. Bxg7 {[%clk 0:00:08]} 1-0


[Site "https://www.chess.com"]